[Event "Oceania Zonal Open 2023"]
[Site "Melbourne"]
[Date "2023.01.23"]
[Round "1.6"]
[White "Ni, Lucas"]
[Black "Lane, Gary W"]
[Result "0-1"]
[ECO "C60"]
[WhiteElo "1641"]
[BlackElo "2343"]
[Annotator "TA"]
[PlyCount "72"]
[EventDate "2023.01.09"]
[EventType "swiss"]
[EventCountry "AUS"]
[SourceTitle "playchess.com"]
[Source "ChessBase"]
[SourceQuality "1"]
[TimeControl "5400+30"]

{[%evp 12,72,28,22,31,35,38,35,22,6,36,-70,-62,-110,-125,-187,-175,-186,-64,-57,-64,-54,0,-20,119,-175,-170,-180,-173,-209,-229,-294,-289,-312,-287,-316,-290,-310,-107,-114,-107,-112,-93,-228,-231,-289,-172,-230,-236,-241,-207,-229,-98,-128,-120,-114,-132,-319,-273,-274,-275,-29994,-29995]} 1. e4 {[%emt 0:00:03]} e5 {[%emt 0:00:05]} 2. Nf3 {[%emt 0:00:07]} Nc6 {[%emt 0:00:05]} 3. Bb5 {[%emt 0:00:06]} a6 {[%emt 0:00:06]} 4. Ba4 {[%emt 0:00:06]} Nge7 {[%emt 0:00:06]} 5. O-O {[%emt 0:00:31]} g6 {[%emt 0:00:06]} 6. c3 {[%emt 0:01:02]} Bg7 {[%emt 0:01:12]} 7. d4 {[%emt 0:00:53] Threatening dxe5.} b5 {[%emt 0:00:22] C60: Ruy Lopez: Unusual Black 3rd moves and 3...g6.} 8. Bc2 {[%emt 0:00:18]} exd4 {[%emt 0:01:39]} 9. cxd4 {[%emt 0:00:28]} O-O {[%emt 0:00:19] White is slightly better.} 10. Nc3 {[%emt 0:00:46] 10.h3 is setting a new trend.} d6 {[%emt 0:00:10]} (10... b4 $5 {[%cal Rb4c3]}) 11. Bf4 {[%emt 0:01:26]} (11. h3 $14) 11... Bg4 $15 {[%emt 0:02:50]} 12. d5 {[%emt 0:02:01]} (12. Be3 $15 {feels stronger.}) 12... Nd4 $1 $17 {[%emt 0:03:04] [#]} 13. Be3 $146 {[%emt 0:01:35] [#]} (13. Re1 $17) ({Predecessor:} 13. Qd3 Nxf3+ 14. gxf3 Bh3 15. Rfe1 Nc8 16. Bg3 Nb6 17. f4 Nd7 18. Rad1 Re8 19. Ne2 {1-0 Spitzl,V (2346)-Stefanova,A (2462) Titled Tuesday intern op 28th Apr blitz 2020 (1)}) 13... Nxf3+ $1 $19 {[%emt 0:04:50]} 14. gxf3 {[%emt 0:00:12] [#]} Bh3 {[%emt 0:00:02]} (14... Bh5 $1 $19 {aiming for ...f5.} 15. Qd3 Qd7) 15. Re1 $15 {[%emt 0:00:32]} f5 {[%emt 0:00:15][%cal Bf7f5,Bf5f4][%mdl 32] Hoping for ...f4.} 16. Kh1 {[%emt 0:04:28]} Qd7 {[%emt 0:05:20]} ({Better is} 16... Nc8 $15) 17. Rg1 {[%emt 0:02:27]} (17. Bd4 $5 {[%cal Rd4g7]}) 17... c5 {[%emt 0:03:18]} (17... Be5 $11 {remains equal.}) 18. Qe2 $2 {[%emt 0:04:20][%mdl 8192]} (18. dxc6 $16 {is forced if you want to stay better.} Nxc6 19. Nd5) 18... f4 $19 {[%emt 0:03:12]} 19. Bd2 {[%emt 0:00:26]} h6 {[%emt 0:01:30]} 20. a3 {[%emt 0:01:06]} g5 {[%emt 0:00:28]} 21. Nd1 {[%emt 0:01:06]} Ng6 {[%emt 0:05:56]} 22. Bc3 {[%emt 0:00:42]} Nh4 {[%emt 0:03:18]} 23. Bxg7 {[%emt 0:00:51]} Qxg7 {[%emt 0:00:05]} (23... Kxg7 24. e5 $17) 24. e5 {[%emt 0:04:26]} dxe5 {[%emt 0:06:43]} (24... g4 $19 25. Be4 Qxe5) 25. Be4 $17 {[%emt 0:00:21]} Kh8 {[%emt 0:00:26] Black has more active pieces. The white rooks are badly placed.} 26. Nc3 {[%emt 0:02:00]} g4 {[%emt 0:05:51]} 27. Qd3 {[%emt 0:02:35]} (27. fxg4 $2 f3 28. Qe3 Bg2+ 29. Rxg2 fxg2+ 30. Kg1 Rf4 $19) (27. a4 $17) 27... c4 $19 {[%emt 0:02:36]} 28. Qd1 {[%emt 0:00:11][%cal Rf3g4]} h5 {[%emt 0:01:49]} (28... Qa7 $142 29. Qe2 Qb6) 29. fxg4 {[%emt 0:01:17]} (29. d6 $142) 29... f3 {[%emt 0:07:52] Threatens to win with ...Bg2+.} ({Don't do} 29... Bxg4 30. f3 $18) 30. Rg3 {[%emt 0:00:33]} hxg4 {[%emt 0:00:38]} ({Not} 30... Bxg4 31. h3 Qh6 32. hxg4 $11) 31. Qd2 {[%emt 0:02:07]} Bg2+ {[%emt 0:17:29]} (31... Rf6 $19 {...Raf8 is the strong threat.} 32. Rd1 (32. d6 $2 Rd8 $19) 32... Ng2) 32. Kg1 $17 {[%emt 0:00:08][%cal Og3g4]} Nf5 {[%emt 0:00:40]} 33. Bxf5 {[%emt 0:00:19]} Rxf5 {[%emt 0:01:52][%cal Bf8f5,Bf5h5,Bh5h2][%mdl 32]} 34. Nd1 $2 {[%emt 0:00:42]} (34. d6 $17) 34... Rh5 {[%emt 0:03:36][%cal Oh5h2] ( -> ...Rxh2!)} 35. Ne3 {[%emt 0:01:02]} Rxh2 {[%emt 0:00:25][%csl Gg2][%cal Rh2h1][%mdl 64] Decoy, Back Rank} 36. Nxg2 $2 {[%emt 0:00:11]} (36. Rxg2 $19 Rxg2+ 37. Nxg2) 36... Qh7 {[%emt 0:00:28] Excellently played by Lane!   Weighted Error Value: White=0.74/Black=0.34} 0-1

[Event "Oceania Zonal Open 2023"]
[Site "Melbourne"]
[Date "2023.01.23"]
[Round "1.7"]
[White "Liu, Yi"]
[Black "Tang, Terrence"]
[Result "1-0"]
[ECO "D02"]
[WhiteElo "2303"]
[BlackElo "1641"]
[Annotator "TA"]
[PlyCount "79"]
[EventDate "2023.01.09"]
[EventType "swiss"]
[EventCountry "AUS"]
[SourceTitle "playchess.com"]
[Source "ChessBase"]
[SourceQuality "1"]
[TimeControl "5400+30"]

{[%evp 11,79,-4,4,-14,-16,-26,0,0,0,0,0,0,10,0,15,6,11,-8,0,-13,10,0,0,-26,-26,-37,-22,-123,0,0,31,0,0,-25,-27,-33,0,0,0,0,0,0,0,0,0,-38,47,45,54,47,53,44,64,58,157,70,127,150,192,132,115,73,106,0,128,120,104,52,1658,1538]} 1. d4 {[%emt 0:00:20]} d5 {[%emt 0:00:46]} 2. Nf3 {[%emt 0:00:06]} Nf6 {[%emt 0:00:09]} 3. c3 {[%emt 0:00:01]} e6 {[%emt 0:00:34]} 4. Bf4 {[%emt 0:00:03]} c5 {[%emt 0:00:20]} 5. e3 {[%emt 0:00:02]} Nc6 {[%emt 0:00:19]} 6. Nbd2 {[%emt 0:00:04]} Bd6 {[%emt 0:01:38] 6...cxd4 injects fresh life into this line.} 7. Bd3 {[%emt 0:00:35] D02: 1 d4 d5 2 Nf3 sidelines, including 2...Nf6 3 g3 and 2...Nf6 3 Bf4.} Bxf4 {[%emt 0:03:12]} 8. exf4 {[%emt 0:00:36]} cxd4 {[%emt 0:00:42]} 9. cxd4 {[%emt 0:04:01] The position is equal.} Qd6 {[%emt 0:01:49]} 10. g3 $1 {[%emt 0:03:58]} Qb4 {[%emt 0:07:46][%csl LRb2,LRd4]} 11. Qb3 {[%emt 0:02:31] [#]} Qxb3 $146 {[%emt 0:00:49]} ({Predecessor:} 11... Ne4 12. Qxb4 Nxb4 13. Bb1 Nxd2 14. Nxd2 Bd7 15. a3 Nc6 16. Nf3 Rc8 17. O-O O-O {0-1 Van Setten,A (1722)-Shah,S (1528) Hoogeveen Amateurs op 25th 2022 (4.17)}) 12. Nxb3 {[%emt 0:00:18]} Ne4 {[%emt 0:03:55]} 13. Rc1 {[%emt 0:04:31]} Nd6 {[%emt 0:06:40]} 14. h4 {[%emt 0:00:50]} Bd7 {[%emt 0:04:13]} 15. h5 {[%emt 0:00:24]} f6 {[%emt 0:12:05]} 16. a3 {[%emt 0:03:07]} Rc8 {[%emt 0:07:17]} 17. Kd2 {[%emt 0:02:58]} b6 {[%emt 0:03:32]} 18. Ba6 {[%emt 0:03:19]} Rc7 {[%emt 0:00:47]} (18... Rb8 $5 {[%cal Rb6b5]}) 19. Rc2 {[%emt 0:00:11] [#]} (19. h6 $11 {keeps the balance.}) 19... Bc8 {[%emt 0:05:40]} (19... b5 $1 $17 {Strongly threatening ...Nc4+.} 20. Ke2 Ke7) 20. Bd3 $11 {[%emt 0:00:33] Wards off Nc4+} O-O {[%emt 0:05:31]} 21. Rhc1 {[%emt 0:05:45]} (21. h6 $5 {[%cal Rh6g7]}) 21... Bb7 {[%emt 0:01:33]} 22. a4 {[%emt 0:08:11]} Rfc8 {[%emt 0:01:18]} 23. Bb5 {[%emt 0:14:15]} Na5 {[%emt 0:07:25]} 24. Nxa5 {[%emt 0:01:27]} Rxc2+ {[%emt 0:00:07]} 25. Rxc2 {[%emt 0:00:01]} bxa5 {[%emt 0:01:22]} 26. Bd3 {[%emt 0:12:02]} Rxc2+ {[%emt 0:06:08]} 27. Bxc2 {[%emt 0:00:18][%mdl 4096] Endgame KBN-KBN} Bc6 {[%emt 0:01:10]} 28. Kc3 {[%emt 0:00:49]} Ne4+ {[%emt 0:07:12]} (28... Be8 $15) 29. Bxe4 $14 {[%emt 0:00:05]} dxe4 {[%emt 0:00:06] KB-KN} 30. Nd2 {[%emt 0:00:46][%cal Oh5h6]} Bxa4 {[%emt 0:00:11]} 31. Nxe4 {[%emt 0:00:42] aiming for Nc5.} Kf7 {[%emt 0:01:23]} 32. Nd6+ {[%emt 0:02:44]} Kf8 {[%emt 0:01:45]} (32... Ke7 $14 33. Nc4 Be8) 33. Nb7 {[%emt 0:01:38]} (33. h6 $16) 33... h6 {[%emt 0:00:32]} (33... Ke7 $14) 34. Nc5 $1 $16 {[%emt 0:16:02]} ({Don't do} 34. Nxa5 $6 Bd1 $14) 34... Bd1 {[%emt 0:00:18]} 35. Nxe6+ {[%emt 0:00:01]} Kf7 {[%emt 0:00:08]} 36. Nd8+ {[%emt 0:01:41]} Ke8 {[%emt 0:00:06]} 37. Ne6 {[%emt 0:03:41]} Kf7 {[%emt 0:00:04] [#]} 38. d5 {[%emt 0:00:28][%cal Bd4d5,Bd5d6][%mdl 32]} Bxh5 {[%emt 0:06:13]} 39. f5 {[%emt 0:00:28] White is more active.} (39. Nd4 $16) 39... g5 $2 {[%emt 0:03:11][%mdl 8192]} (39... Bg4 $14) 40. d6 {[%emt 0:01:08] Weighted Error Value: White=0.22 (precise) /Black=0.19 (very precise)} 1-0

[Event "Oceania Zonal Open 2023"]
[Site "Melbourne"]
[Date "2023.01.23"]
[Round "1.7"]
[White "McGowan, Cameron"]
[Black "Chmiel, Rad"]
[Result "1-0"]
[ECO "C42"]
[WhiteElo "2175"]
[BlackElo "1628"]
[Annotator "TA"]
[PlyCount "51"]
[EventDate "2023.01.09"]
[EventType "swiss"]
[EventCountry "AUS"]
[SourceTitle "playchess.com"]
[Source "ChessBase"]
[SourceQuality "1"]
[TimeControl "5400+30"]

{[%evp 18,51,23,-25,-19,-45,0,0,57,52,58,66,222,222,222,222,222,222,314,334,460,467,612,604,620,618,5643,5543,2360,2233,1583,1529,1348,869,775,688]} 1. e4 {[%emt 3:21:19]} e5 {[%emt 0:00:10]} 2. Nf3 {[%emt 0:00:05]} Nf6 {[%emt 0:00:10]} 3. Nxe5 {[%emt 0:00:12]} d6 {[%emt 0:00:07]} 4. Nf3 {[%emt 0:00:05]} Nxe4 {[%emt 0:00:09]} 5. Nc3 {[%emt 0:00:02]} Nxc3 {[%emt 0:00:13]} 6. dxc3 {[%emt 0:00:04]} Be7 {[%emt 0:00:15]} 7. Be3 {[%emt 0:00:14]} Nc6 {[%emt 0:00:13]} 8. Qd2 {[%emt 0:00:10]} O-O {[%emt 0:00:13]} 9. O-O-O {[%emt 0:00:14]} Ne5 {[%emt 0:00:46]} 10. Nd4 {[%emt 0:13:55]} (10. Kb1 $142) 10... c5 $11 {[%emt 0:06:34] C42: Petroff Defence: 3 Nxe5 and unusual White 3rd moves.} 11. Nb5 {[%emt 0:34:29][%cal Rb5d6]} Qa5 {[%emt 0:04:45]} (11... Be6 $5 {[%cal Rd8a5]}) 12. a3 {[%emt 0:03:23]} a6 {[%emt 0:20:23]} (12... Rd8 $11 13. c4 Qb6) 13. Nxd6 $14 {[%emt 0:01:11] Threatens to win with Qd5.} Rd8 {[%emt 0:02:14]} 14. Nxc8 {[%emt 0:00:49]} Rxd2 $2 {[%emt 0:01:52]} ({Black should play} 14... Raxc8 $14 15. Qe1 Rxd1+ 16. Qxd1 Rd8) 15. Nxe7+ $18 {[%emt 0:00:04]} Kf8 {[%emt 0:00:12] Strongly threatening ...Rxd1+.} 16. Rxd2 {[%emt 0:01:45]} Kxe7 {[%emt 0:00:11]} 17. Rd5 $1 {[%emt 0:01:24][%csl LRc5,LRe5]} Nd7 {[%emt 0:20:50] Black is weak on the dark squares} (17... f6 {might work better.} 18. f4 (18. Bxc5+ Ke8 $14) (18. Rxc5 Qa4 $16) 18... Nd7) 18. Be2 {[%emt 0:12:07][%cal Bf1e2,Be2f3,Bf3e4][%mdl 32]} b6 {[%emt 0:15:40] [#]} 19. Bf3 $1 {[%emt 0:06:32] White is clearly winning.} Ra7 {[%emt 0:00:26]} 20. Re1 {[%emt 0:02:15] [#]} Kf8 $146 {[%emt 0:01:10]} ({Predecessor:} 20... Kd8 21. Bg4 g6 22. Bg5+ {1-0 Schmidt,W (2235)-Wittmann,M (2138) Regionalliga SO 1011 2010 (9.2)}) 21. Bf4 {[%emt 0:03:38] White wants to mate with Bd6+.} f6 {[%emt 0:02:55]} 22. Bd6+ {[%emt 0:02:15]} Kf7 {[%emt 0:00:52]} 23. Re7+ {[%emt 0:00:03]} Kg6 {[%emt 0:00:18]} 24. Be4+ {[%emt 0:02:04][%mdl 64] [#] Skewer. A strong pair of Bishops.} f5 {[%emt 0:00:34]} 25. Rxf5 {[%emt 0:09:09] White threatens Re6+ and mate.} Nf6 {[%emt 0:01:00]} 26. Rxc5+ {[%emt 0:00:38] Black did not feel at home in the position after the opening.   Weighted Error Value: White=0.09 (flawless) /Black=0.76} 1-0

[Event "Oceania Zonal Open 2023"]
[Site "Melbourne"]
[Date "2023.01.23"]
[Round "1.8"]
[White "Bekker, Gary D"]
[Black "Gong, Patrick"]
[Result "0-1"]
[ECO "E90"]
[WhiteElo "1637"]
[BlackElo "2292"]
[Annotator "TA"]
[PlyCount "76"]
[EventDate "2023.01.09"]
[EventType "swiss"]
[EventCountry "AUS"]
[SourceTitle "playchess.com"]
[Source "ChessBase"]
[SourceQuality "1"]
[TimeControl "5400+30"]

{[%evp 13,76,26,33,34,52,35,31,29,38,33,33,33,43,31,54,62,55,22,26,0,38,36,40,41,78,81,72,72,70,17,22,0,0,0,11,0,0,0,3,-5,0,-143,-6,-8,-3,-267,-267,-267,-267,-342,-330,-272,-246,-255,-254,-29981,-29982,-29989,-29990,-29995,-29996,-29996,-29997,-29997,-29998]} 1. d4 {[%emt 0:00:02]} Nf6 {[%emt 0:00:23]} 2. c4 {[%emt 0:00:04]} c5 {[%emt 0:00:24]} 3. d5 {[%emt 0:00:09]} d6 {[%emt 0:00:19]} 4. Nc3 {[%emt 0:00:39]} g6 {[%emt 0:00:08]} 5. e4 {[%emt 0:00:55]} Bg7 {[%emt 0:00:10]} 6. Nf3 {[%emt 0:00:25]} O-O {[%emt 0:00:12]} 7. Bd3 {[%emt 0:01:08]} Bg4 {[%emt 0:01:27]} 8. O-O {[%emt 0:01:06] E90: King's Indian: Classical: Early deviations and 6 h3.} Nbd7 {[%emt 0:01:02]} 9. h3 {[%emt 0:00:05]} Bxf3 {[%emt 0:00:29]} 10. Qxf3 {[%emt 0:00:15] White is slightly better.} Ne5 {[%emt 0:00:24]} 11. Qe2 {[%emt 0:03:03]} Nxd3 {[%emt 0:00:43]} 12. Qxd3 {[%emt 0:00:05]} Nd7 {[%emt 0:05:54]} 13. Bf4 {[%emt 0:05:13]} Qa5 {[%emt 0:04:18]} 14. Bd2 {[%emt 0:05:13]} a6 {[%emt 0:11:20][%cal Ob7b5]} 15. Nd1 {[%emt 0:10:36]} Qc7 {[%emt 0:03:47] [#]} 16. a4 $146 {[%emt 0:03:59]} ({Predecessor:} 16. Bc3 Ne5 17. Qe2 b5 18. cxb5 axb5 19. f4 Nc4 20. Bxg7 Kxg7 {½-½ Kotomkin,I-Tishin,A (2018) Gorodets op 2012 (8)}) 16... Rab8 {[%emt 0:06:48][%cal Ob7b5]} 17. Bc3 {[%emt 0:00:52]} Ne5 {[%emt 0:11:22]} 18. Qe2 {[%emt 0:01:04]} b5 {[%emt 0:05:05]} 19. axb5 {[%emt 0:01:35]} axb5 {[%emt 0:00:06]} 20. cxb5 {[%emt 0:02:13]} c4 {[%emt 0:02:13]} 21. Bxe5 {[%emt 0:11:42]} (21. f4 $14 Nd3 22. Bxg7 Kxg7 23. Nc3) 21... Bxe5 $11 {[%emt 0:00:11]} 22. Ne3 {[%emt 0:03:12]} Rxb5 {[%emt 0:05:19]} 23. Nxc4 {[%emt 0:00:50]} Bg7 {[%emt 0:02:07]} 24. Ra2 {[%emt 0:03:39][%cal Oc4d6]} Rfb8 {[%emt 0:04:20]} 25. Rb1 {[%emt 0:05:08]} Bd4 {[%emt 0:05:48]} 26. Kf1 {[%emt 0:14:58]} Qc5 {[%emt 0:05:11]} 27. f3 {[%emt 0:08:14] [#]} (27. Ra6 $11) 27... Rc8 {[%emt 0:02:34] Black is more active. White is weak on the dark squares} (27... Rb4 $1 $17 {[%cal Rb4c4]} 28. Rc1 Bxb2) 28. Ra4 {[%emt 0:04:29]} Rb3 {[%emt 0:02:07]} 29. g3 $2 {[%emt 0:12:24][%mdl 8192] Now White is beyond hope.} (29. Na5 $11 Rxb2 {[%mdl 64] Decoy} 30. Rxb2 Qc1+ 31. Qe1 Bxb2 32. Qxc1 Rxc1+ 33. Kf2) 29... Qb5 $19 {[%emt 0:02:59]} 30. Rba1 {[%emt 0:00:12]} Bxb2 {[%emt 0:01:04]} 31. Nxb2 {[%emt 0:00:29] aiming for Qxb5.} Qxe2+ {[%emt 0:00:47]} 32. Kxe2 {[%emt 0:00:09] Threatens to win with Nc4.} Rxb2+ {[%emt 0:00:23][%mdl 4096] Endgame KRR-KRR} 33. Ke3 {[%emt 0:00:28]} Rc3+ {[%emt 0:00:18]} 34. Kf4 $2 {[%emt 0:00:15] [#]} (34. Kd4 $19 Rbb3 35. g4) 34... Rf2 $1 {[%emt 0:00:11] Black mates.} 35. Rg1 {[%emt 0:01:59]} Kg7 {[%emt 0:00:45]} 36. Kg4 {[%emt 0:00:40]} h5+ {[%emt 0:00:12]} 37. Kh4 {[%emt 0:00:49]} Kh6 {[%emt 0:00:16][%csl Gh6][%cal Rg6g5]} 38. f4 {[%emt 0:00:02]} f6 {[%emt 0:00:09] An entertaining game by Gong.   Weighted Error Value: White=0.46/Black=0.13 (very precise)} 0-1

[Event "Oceania Zonal Open 2023"]
[Site "Melbourne"]
[Date "2023.01.23"]
[Round "1.8"]
[White "Kong, Nathan"]
[Black "Renjith, Sravan"]
[Result "0-1"]
[ECO "D00"]
[WhiteElo "1627"]
[BlackElo "2172"]
[Annotator "TA"]
[PlyCount "68"]
[EventDate "2023.01.09"]
[EventType "swiss"]
[EventCountry "AUS"]
[SourceTitle "playchess.com"]
[Source "ChessBase"]
[SourceQuality "1"]
[TimeControl "5400+30"]

{[%evp 9,68,-75,-33,-36,0,-54,11,-15,0,-14,9,14,7,5,0,5,29,31,33,37,22,30,48,29,66,56,56,12,9,0,16,-4,0,-43,0,0,0,-59,-65,-50,-52,-131,-119,-159,-158,-151,-106,-115,-91,-441,-441,-1013,-1008,-981,-961,-1258,-1262,-29982,-29982,-29995,-29996]} 1. d4 {[%emt 0:00:04]} d5 {[%emt 0:00:07][%cal Bd7d5,Bd5d4][%mdl 32]} 2. Nc3 {[%emt 0:00:04]} Nf6 {[%emt 0:02:05]} 3. f3 {[%emt 0:00:07]} c5 {[%emt 0:02:33]} 4. e4 {[%emt 0:00:05]} Nc6 {[%emt 0:02:43] [#]} 5. dxc5 $146 {[%emt 0:00:45]} ({Predecessor:} 5. Bb5 e6 6. Nge2 cxd4 7. Nxd4 Bd7 8. Bxc6 bxc6 9. e5 Ng8 10. O-O Bc5 11. Kh1 Ne7 12. Be3 {1-0 Thorfinnsson,B (2419)-Gudmundsson,G (1906) Reykjavik Blitz op 2022 (11)}) 5... d4 {[%emt 0:00:42]} (5... e6 $5 {[%cal Rf8c5]}) 6. Na4 {[%emt 0:00:04] D00: 1 d4 d5: Unusual lines.} e5 {[%emt 0:00:51][%mdl 1024] Black has compensation.} 7. Bd2 {[%emt 0:02:59] Against Qa5} (7. a3 $11) 7... Be7 {[%emt 0:05:02]} ({Better is} 7... Nxe4 $1 $15 8. fxe4 Qh4+ 9. Ke2 Qxe4+ 10. Kf2 Qf5+ 11. Nf3 e4 {[%mdl 64] Pin}) 8. b4 $11 {[%emt 0:01:56][%cal Bb2b4,Bb4b5][%mdl 32] The position is equal.} O-O {[%emt 0:02:15]} 9. Bd3 {[%emt 0:06:20]} Qc7 {[%emt 0:07:04]} 10. a3 {[%emt 0:05:38]} b6 {[%emt 0:03:58]} 11. cxb6 {[%emt 0:05:44]} axb6 {[%emt 0:00:04]} 12. Nb2 {[%emt 0:00:38]} Qa7 {[%emt 0:03:59][%cal Oc6b4]} 13. b5 $1 {[%emt 0:05:13]} Na5 {[%emt 0:18:42]} 14. Ne2 {[%emt 0:06:00][%cal Bg1e2,Be2c1,Bc1b3][%mdl 32]} Re8 {[%emt 0:05:58]} 15. O-O {[%emt 0:02:38]} Bf8 {[%emt 0:03:11]} 16. Nc1 {[%emt 0:24:58]} Be6 {[%emt 0:01:22]} 17. Nb3 {[%emt 0:02:36]} Nb7 {[%emt 0:09:13]} 18. Qb1 {[%emt 0:08:49]} Nd7 {[%emt 0:05:00][%cal Bf6d7,Bd7c5,Bc5d3][%mdl 32]} 19. f4 {[%emt 0:09:01]} f6 {[%emt 0:02:53]} 20. f5 {[%emt 0:01:14]} Bf7 {[%emt 0:00:01]} 21. g4 {[%emt 0:00:53]} Nbc5 {[%emt 0:00:59]} (21... Bxa3 22. Nc4 Bxc4 23. Bxc4+ Kh8 24. Rf3 $16) (21... Nd6 $5 {[%cal Rd7c5]} 22. Bb4 Rec8 $15) 22. Nxc5 {[%emt 0:03:01]} Nxc5 {[%emt 0:00:16]} 23. Rc1 {[%emt 0:05:39]} ({White should try} 23. a4 $11) 23... Qb7 $15 {[%emt 0:00:54]} 24. Re1 {[%emt 0:02:09]} Nxd3 {[%emt 0:00:42]} 25. Nxd3 {[%emt 0:02:26]} (25. cxd3 $15 Bxa3 26. Rc1) 25... Bxa3 $17 {[%emt 0:00:54] Black is more active.} 26. Bb4 {[%emt 0:00:21]} Bxb4 {[%emt 0:00:30]} 27. Nxb4 {[%emt 0:00:11]} Qe7 {[%emt 0:01:31] [#] Strongly threatening ...Rxa1.} 28. Ra6 {[%emt 0:01:52]} Bc4 {[%emt 0:01:59][%cal Bf7c4,Bc4e2,Be2f3][%mdl 32]} 29. Rxb6 $2 {[%emt 0:01:46][%mdl 8192] This move loses the game for White.} (29. Qb2 $17 {is more resistant.}) 29... Qc5 $19 {[%emt 0:00:30][%csl LRb5,LRb6]} 30. Rb7 {[%emt 0:01:43]} (30. Rc6 $142 Qxb5 31. Kf2) 30... d3+ {[%emt 0:00:22]} ({Inferior is} 30... Bxb5 31. Nd3 Bxd3 32. cxd3 $11) 31. Kg2 {[%emt 0:00:28]} d2 {[%emt 0:00:17]} ({Not} 31... Bxb5 32. cxd3 (32. Nxd3 Bxd3 33. cxd3 h6 $14) 32... Ra7 33. Rxa7 Qxa7 34. Nd5 $14) 32. Rd1 {[%emt 0:00:20]} Qe3 {[%emt 0:00:32]} (32... Bxb5 33. Rxd2 Qc4 34. Qb3 Qxb3 35. cxb3 $11) 33. Rc7 {[%emt 0:00:37]} Be2 {[%emt 0:01:57]} ({Weaker is} 33... Bxb5 34. Qb3+ Qxb3 35. cxb3 $11) 34. Nd3 {[%emt 0:00:33]} Bf3+ {[%emt 0:00:21] Weighted Error Value: White=0.77/Black=0.14 (very precise)} 0-1

[Event "Oceania Zonal Open 2023"]
[Site "Melbourne"]
[Date "2023.01.23"]
[Round "1.9"]
[White "Solomon, Stephen J"]
[Black "Jiang, Benjamin Wise"]
[Result "1-0"]
[ECO "B17"]
[WhiteElo "2279"]
[BlackElo "1631"]
[Annotator "TA"]
[PlyCount "57"]
[EventDate "2023.01.09"]
[EventType "swiss"]
[EventCountry "AUS"]
[SourceTitle "playchess.com"]
[Source "ChessBase"]
[SourceQuality "1"]
[TimeControl "5400+30"]

{[%evp 9,57,16,24,16,62,68,70,0,4,0,0,0,5,9,18,12,51,59,52,57,62,64,63,41,35,10,42,-60,75,-22,0,0,0,0,483,479,458,285,29972,29975,7013,5995,29984,29985,29982,29983,29983,1170,29984,29985]} 1. e4 {[%emt 0:00:30]} c6 {[%emt 0:00:04]} 2. d4 {[%emt 0:00:17]} d5 {[%emt 0:00:04]} 3. Nd2 {[%emt 0:00:09]} dxe4 {[%emt 0:00:04]} 4. Nxe4 {[%emt 0:00:31]} Nd7 {[%emt 0:00:06]} 5. Ng5 {[%emt 0:00:47]} h6 {[%emt 0:00:48]} 6. Ne6 {[%emt 0:01:04] B17: Caro-Kann: Modern Line (4...Nd7).} ({Much weaker is} 6. Qh5 g6 7. Qh4 Bg7 $17) 6... Qa5+ {[%emt 0:00:04] is the legacy move (6...Qb6).} (6... Qb6 $11) 7. Bd2 $14 {[%emt 0:02:23] White is more active.} Qb6 {[%emt 0:00:04]} 8. Nxf8 {[%emt 0:09:35]} (8. Bd3 $1 $14) 8... Nxf8 $11 {[%emt 0:00:08]} 9. Nf3 {[%emt 0:03:16] [#]} Bf5 $146 {[%emt 0:07:35]} ({Predecessor:} 9... Nf6 10. Bd3 Qxb2 11. O-O Bg4 12. Rb1 Qxa2 13. Rxb7 Ne6 14. h3 Bxf3 15. Qxf3 Qd5 {½-½ Sadler,M (2653)-Nakamura,H (2767) London Classic rapid op 6th 2014 (6)}) 10. Bc4 {[%emt 0:07:28]} Nf6 {[%emt 0:13:32]} 11. O-O {[%emt 0:01:24]} e6 {[%emt 0:10:48]} 12. a4 {[%emt 0:03:18][%cal Ba2a4,Ba4a5][%mdl 32]} Ng6 {[%emt 0:00:41]} 13. a5 $36 {[%emt 0:04:34][%mdl 2048] White is more active.} Qc7 {[%emt 0:00:17]} (13... Qxb2 $2 14. Ra2 $18) 14. Bb4 {[%emt 0:03:34]} Ne7 {[%emt 0:03:08]} 15. Ne5 {[%emt 0:03:55]} O-O {[%emt 0:01:39] Black is weak on the dark squares} 16. Re1 {[%emt 0:04:24]} Rfe8 {[%emt 0:03:10]} 17. g4 {[%emt 0:08:00] [#] Hoping for Bxe7.} Be4 {[%emt 0:07:16]} 18. h4 {[%emt 0:02:57]} ({Better is} 18. Bxe7 $14 Qxe7 19. h4) 18... Ned5 {[%emt 0:00:58]} (18... Ng6 $1 $15 {keeps the upper hand.}) 19. g5 {[%emt 0:01:25]} (19. Bd2 $16 {g5 is the strong threat.} Bh7 20. Qf3) 19... hxg5 {[%emt 0:03:18]} (19... Nxb4 {feels hotter.} 20. gxf6 Bf5 21. Qh5 Nxc2 22. Kh1 Nxe1 23. Rxe1 Bg6) 20. hxg5 {[%emt 0:00:13]} Nxb4 {[%emt 0:00:48]} 21. gxf6 {[%emt 0:00:12]} gxf6 $2 {[%emt 0:08:08][%mdl 8192]} (21... Bf5 $1 $11 {and Black has nothing to worry.} 22. Qd2 gxf6 23. Qxb4 fxe5) 22. Rxe4 $18 {[%emt 0:08:08]} fxe5 {[%emt 0:01:00]} 23. dxe5 {[%emt 0:02:21] Qh5 would be deadly.} Qe7 $2 {[%emt 0:01:35]} (23... Kf8 $18 24. Qh5 Ke7) 24. Qh5 {[%emt 0:06:18]} f5 {[%emt 0:01:35]} 25. Qxf5 {[%emt 0:05:04] White wants to mate with Rg4+.} Nd5 {[%emt 0:02:25]} 26. Rg4+ {[%emt 0:00:27]} Kh8 {[%emt 0:00:36] [#]} 27. Qh5+ $1 {[%emt 0:00:09]} ({Less strong is} 27. Qg6 Rg8 28. Qh6+ Qh7 29. Qxh7+ (29. Qxe6 $2 {too greedy.} Rxg4+ 30. Qxg4 Rg8 $19) 29... Kxh7 30. Bd3+ Kh8 $16) 27... Qh7 {[%emt 0:00:15]} 28. Qxh7+ {[%emt 0:00:09]} Kxh7 {[%emt 0:00:07]} 29. Ra3 {[%emt 0:01:17] Weighted Error Value: White=0.31/Black=0.86} 1-0